Workbook

Sheet MAPE
B2: Periode | C2: 1 | D2: 2 | E2: 3 | F2: 4 | G2: 5 | H2: 6 | I2: 7 | J2: 8 | K2: 9 | L2: 10
N3: MAE | O3: MAPE | P3: wMAPE
B4: AE | C4: =ABS(C7-C6) -> 120 | D4: =ABS(D7-D6) -> 190 | E4: 120 | F4: 150 | G4: 130 | H4: 160 | I4: 140 | J4: 180 | K4: 210 | L4: 100 | M4: =SUM(C4:L4) -> 1500 | N4: =AVERAGE(C4:L4) -> 150
B5: APE | C5: =ABS((C7-C6)/C7) -> 0.04979253112 | D5: =ABS((D7-D6)/D7) -> 0.07421875 | E5: 0.04897959184 | F5: 0.05859375 | G5: 0.08965517241 | H5: 0.04347826087 | I5: 0.112 | J5: 0.04986149584 | K5: 0.08936170213 | L5: 0.03484320557 | O5: =AVERAGE(C5:L5) -> 0.06507844598
B6: FCST1 | C6: 2530 | D6: 2750 | E6: 2570 | F6: 2710 | G6: 1580 | H6: 3840 | I6: 1390 | J6: 3790 | K6: 2560 | L6: 2970 | M6: =SUM(FCST1) -> 26690 | N6: =M6-M7 -> 1500 | P6: =SUMPRODUCT(C5:L5,Actuals)/SUM(Actuals) -> 0.05954743946
B7: Actuals | C7: 2410 | D7: 2560 | E7: 2450 | F7: 2560 | G7: 1450 | H7: 3680 | I7: 1250 | J7: 3610 | K7: 2350 | L7: 2870 | M7: 25190
B8: FCST2 | C8: 2310 | D8: 2480 | E8: 2240 | F8: 2300 | G8: 1300 | H8: 3500 | I8: 1140 | J8: 3520 | K8: 2280 | L8: 2620 | M8: =SUM(FCST2) -> 23690 | N8: =M8-M7 -> -1500 | P8: =SUMPRODUCT(C9:L9,Actuals)/SUM(Actuals) -> 0.05954743946
B9: APE | C9: =(ABS((C7-C8)/C7)) -> 0.04149377593 | D9: =(ABS((D7-D8)/D7)) -> 0.03125 | E9: 0.08571428571 | F9: 0.1015625 | G9: 0.1034482759 | H9: 0.04891304348 | I9: 0.088 | J9: 0.02493074792 | K9: 0.02978723404 | L9: 0.08710801394 | O9: =AVERAGE(C9:L9) -> 0.06422078769
B10: AE | C10: =ABS(C7-C8) -> 100 | D10: =ABS(D7-D8) -> 80 | E10: 210 | F10: 260 | G10: 150 | H10: 180 | I10: 110 | J10: 90 | K10: 70 | L10: 250 | M10: =SUM(C10:L10) -> 1500 | N10: =AVERAGE(C10:L10) -> 150
N11: MAE | O11: MAPE

Sheet SimpleExpSmoothing
A1: Simple Exponential Smoothing (SES) | G1: 0.120325011 | H1: 0.1164522464 | I1: vorher
G2: =G5-G1 -> 0 | H2: =H5-H1 -> 0 | I2: diff. zu vorher
B4: alpha | C4: 0.15 | F4: MAE | G4: MAPE | H4: wMAPE
F5: =AVERAGE(F8:F29) -> 99.07439526 | G5: =AVERAGE(G8:G29) -> 0.120325011 | H5: =SUM(H8:H29) -> 0.1164522464
B6: Periode | C6: Bedarf | D6: Level | E6: Prognose | F6: Abs Fehler | G6: APE | H6: wAPE
B7: 0 | D7: =AVERAGE(Bedarf) -> 850.7727273
B8: 1 | C8: 886 | D8: =alpha*C8+(1-alpha)*Level_0 -> 856.0568182 | E8: =D7 -> 850.7727273 | F8: =ABS(C8-E8) -> 35.22727273 | G8: =ABS((C8-E8)/C8) -> 0.0397599015 | H8: =C8*G8/SUM($C$8:$C$29) -> 0.001882100375
B9: 2 | C9: 733 | D9: =alpha*C9+(1-alpha)*D8 -> 837.5982955 | E9: =D8 -> 856.0568182 | F9: =ABS(C9-E9) -> 123.0568182 | G9: =ABS((C9-E9)/C9) -> 0.1678810616 | H9: =C9*G9/SUM($C$8:$C$29) -> 0.006574601602
B10: 3 | C10: 735 | D10: 822.2085511 | E10: =D9 -> 837.5982955 | F10: =ABS(C10-E10) -> 102.5982955 | G10: 0.1395895176 | H10: 0.005481556631
B11: 4 | C11: 652 | D11: 796.6772685 | E11: 822.2085511 | F11: 170.2085511 | G11: 0.26105606 | H11: 0.009093794472
B12: 5 | C12: 590 | D12: 765.6756782 | E12: 796.6772685 | F12: 206.6772685 | G12: 0.350300455 | H12: 0.01104222196
B13: 6 | C13: 818 | D13: 773.5243265 | E13: 765.6756782 | F13: 52.3243218 | G13: 0.06396616357 | H13: 0.002795550665
B14: 7 | C14: 684 | D14: 760.0956775 | E14: 773.5243265 | F14: 89.52432647 | G14: 0.1308835182 | H14: 0.004783048911
B15: 8 | C15: 766 | D15: 760.9813259 | E15: 760.0956775 | F15: 5.904322503 | G15: 0.007707992824 | H15: 0.0003154523964
B16: 9 | C16: 854 | D16: 774.934127 | E16: 760.9813259 | F16: 93.01867413 | G16: 0.1089211641 | H16: 0.004969742701
B17: 10 | C17: 972 | D17: 804.4940079 | E17: 774.934127 | F17: 197.065873 | G17: 0.2027426677 | H17: 0.01052871042
B18: 11 | C18: 1014 | D18: 835.9199068 | E18: 804.4940079 | F18: 209.5059921 | G18: 0.2066134044 | H18: 0.01119335321
B19: 12 | C19: 904 | D19: 846.1319207 | E19: 835.9199068 | F19: 68.08009325 | G19: 0.07530983766 | H19: 0.003637340025
B20: 13 | C20: 896 | D20: 853.6121326 | E20: 846.1319207 | F20: 49.86807926 | G20: 0.05565633846 | H20: 0.002664320097
B21: 14 | C21: 925 | D21: 864.3203127 | E21: 853.6121326 | F21: 71.38786737 | G21: 0.07717607283 | H21: 0.003814065682
B22: 15 | C22: 1085 | D22: 897.4222658 | E22: 864.3203127 | F22: 220.6796873 | G22: 0.2033914168 | H22: 0.01179033431
B23: 16 | C23: 1005 | D23: 913.558926 | E23: 897.4222658 | F23: 107.5777342 | G23: 0.1070425216 | H23: 0.005747594923
B24: 17 | C24: 789 | D24: 894.8750871 | E24: 913.558926 | F24: 124.558926 | G24: 0.1578693612 | H24: 0.006654855263
B25: 18 | C25: 887 | D25: 893.693824 | E25: 894.8750871 | F25: 7.875087058 | G25: 0.008878339411 | H25: 0.0004207451545
B26: 19 | C26: 780 | D26: 876.6397504 | E26: 893.693824 | F26: 113.693824 | G26: 0.1457613128 | H26: 0.006074361489
B27: 20 | C27: 886 | D27: 878.0437878 | E27: 876.6397504 | F27: 9.360249601 | G27: 0.0105646158 | H27: 0.0005000934766
B28: 21 | C28: 981 | D28: 893.4872197 | E28: 878.0437878 | F28: 102.9562122 | G28: 0.1049502672 | H28: 0.005500679177
B29: 22 | C29: 875 | D29: 890.7141367 | E29: =D28 -> 893.4872197 | F29: 18.48721966 | G29: 0.02112825104 | H29: 0.000987723442
B30: 23 | E30: =D29 -> 890.7141367

Sheet TestData
A1: Product | B1: Product Name | C1: 1 | D1: 2 | E1: 3 | F1: 4 | G1: 5 | H1: 6 | I1: 7 | J1: 8 | K1: 9 | L1: 10 | M1: 11 | N1: 12 | O1: 13 | P1: 14 | Q1: 15 | R1: 16 | S1: 17 | T1: 18 | U1: 19 | V1: 20 | W1: 21 | X1: 22 | Y1: Forecast
C2: 684 | D2: 733 | E2: 697 | F2: 652 | G2: 590 | H2: 818 | I2: 684 | J2: 766 | K2: 504 | L2: 972 | M2: 1014 | N2: 1101 | O2: 829 | P2: 1058 | Q2: 1085 | R2: 1005 | S2: 789 | T2: 887 | U2: 780 | V2: 886 | W2: 981 | X2: 1034
C3: 713 | D3: 784 | E3: 725 | F3: 715 | G3: 649 | H3: 873 | I3: 690 | J3: 824 | K3: 571 | L3: 1042 | M3: 1026 | N3: 1121 | O3: 840 | P3: 1079 | Q3: 1117 | R3: 1076 | S3: 819 | T3: 950 | U3: 794 | V3: 952 | W3: 1029 | X3: 1064
C4: 701 | D4: 761 | E4: 732 | F4: 683 | G4: 651 | H4: 886 | I4: 755 | J4: 838 | K4: 562 | L4: 1002 | M4: 1062 | N4: 1153 | O4: 841 | P4: 1081 | Q4: 1146 | R4: 1043 | S4: 824 | T4: 914 | U4: 838 | V4: 929 | W4: 1041 | X4: 1064
C5: 733 | D5: 772 | E5: 756 | F5: 710 | G5: 630 | H5: 855 | I5: 756 | J5: 822 | K5: 570 | L5: 1026 | M5: 1066 | N5: 1153 | O5: 861 | P5: 1064 | Q5: 1141 | R5: 1065 | S5: 798 | T5: 895 | U5: 828 | V5: 920 | W5: 1006 | X5: 1079
C6: 747 | D6: 742 | E6: 745 | F6: 674 | G6: 629 | H6: 861 | I6: 742 | J6: 822 | K6: 536 | L6: 981 | M6: 1039 | N6: 1118 | O6: 842 | P6: 1117 | Q6: 1142 | R6: 1047 | S6: 807 | T6: 898 | U6: 785 | V6: 939 | W6: 1039 | X6: 1103
C7: 689 | D7: 780 | E7: 765 | F7: 724 | G7: 645 | H7: 864 | I7: 728 | J7: 781 | K7: 541 | L7: 1034 | M7: 1087 | N7: 1117 | O7: 872 | P7: 1083 | Q7: 1124 | R7: 1033 | S7: 839 | T7: 930 | U7: 785 | V7: 940 | W7: 986 | X7: 1089
C8: 758 | D8: 776 | E8: 712 | F8: 685 | G8: 606 | H8: 875 | I8: 758 | J8: 816 | K8: 559 | L8: 997 | M8: 1080 | N8: 1119 | O8: 871 | P8: 1108 | Q8: 1118 | R8: 1015 | S8: 852 | T8: 909 | U8: 813 | V8: 950 | W8: 1037 | X8: 1094
C9: 757 | D9: 743 | E9: 738 | F9: 659 | G9: 605 | H9: 864 | I9: 734 | J9: 831 | K9: 514 | L9: 1024 | M9: 1051 | N9: 1149 | O9: 899 | P9: 1120 | Q9: 1122 | R9: 1039 | S9: 863 | T9: 953 | U9: 791 | V9: 921 | W9: 1014 | X9: 1055
C10: 691 | D10: 764 | E10: 704 | F10: 725 | G10: 650 | H10: 842 | I10: 732 | J10: 812 | K10: 572 | L10: 1017 | M10: 1041 | N10: 1113 | O10: 893 | P10: 1065 | Q10: 1143 | R10: 1023 | S10: 794 | T10: 917 | U10: 792 | V10: 931 | W10: 1046 | X10: 1101
C11: 715 | D11: 753 | E11: 772 | F11: 677 | G11: 640 | H11: 873 | I11: 710 | J11: 799 | K11: 557 | L11: 1037 | M11: 1071 | N11: 1123 | O11: 876 | P11: 1131 | Q11: 1103 | R11: 1077 | S11: 855 | T11: 917 | U11: 844 | V11: 910 | W11: 1010 | X11: 1087
C12: 754 | D12: 742 | E12: 732 | F12: 684 | G12: 650 | H12: 846 | I12: 701 | J12: 827 | K12: 514 | L12: 1033 | M12: 1069 | N12: 1122 | O12: 839 | P12: 1089 | Q12: 1109 | R12: 1038 | S12: 795 | T12: 904 | U12: 807 | V12: 959 | W12: 1000 | X12: 1084
C13: 749 | D13: 783 | E13: 725 | F13: 673 | G13: 664 | H13: 859 | I13: 729 | J13: 779 | K13: 563 | L13: 1046 | M13: 1086 | N13: 1134 | O13: 874 | P13: 1101 | Q13: 1128 | R13: 1021 | S13: 825 | T13: 925 | U13: 797 | V13: 955 | W13: 1052 | X13: 1046
C14: 705 | D14: 755 | E14: 747 | F14: 715 | G14: 612 | H14: 871 | I14: 710 | J14: 792 | K14: 532 | L14: 1003 | M14: 1087 | N14: 1150 | O14: 876 | P14: 1116 | Q14: 1160 | R14: 1022 | S14: 827 | T14: 920 | U14: 810 | V14: 960 | W14: 1020 | X14: 1063
C15: 738 | D15: 790 | E15: 722 | F15: 676 | G15: 653 | H15: 841 | I15: 738 | J15: 775 | K15: 543 | L15: 997 | M15: 1044 | N15: 1137 | O15: 894 | P15: 1114 | Q15: 1154 | R15: 1076 | S15: 824 | T15: 892 | U15: 844 | V15: 961 | W15: 1021 | X15: 1083
C16: 710 | D16: 741 | E16: 711 | F16: 677 | G16: 621 | H16: 847 | I16: 719 | J16: 824 | K16: 518 | L16: 1029 | M16: 1033 | N16: 1129 | O16: 898 | P16: 1105 | Q16: 1139 | R16: 1049 | S16: 824 | T16: 958 | U16: 845 | V16: 897 | W16: 1023 | X16: 1040
C17: 692 | D17: 758 | E17: 766 | F17: 665 | G17: 648 | H17: 838 | I17: 717 | J17: 832 | K17: 518 | L17: 1026 | M17: 1050 | N17: 1138 | O17: 888 | P17: 1088 | Q17: 1153 | R17: 1036 | S17: 813 | T17: 960 | U17: 791 | V17: 897 | W17: 1005 | X17: 1084
C18: 698 | D18: 804 | E18: 723 | F18: 704 | G18: 634 | H18: 856 | I18: 706 | J18: 783 | K18: 559 | L18: 1022 | M18: 1055 | N18: 1118 | O18: 850 | P18: 1069 | Q18: 1152 | R18: 1018 | S18: 829 | T18: 948 | U18: 842 | V18: 951 | W18: 1002 | X18: 1043
C19: 739 | D19: 802 | E19: 715 | F19: 706 | G19: 625 | H19: 837 | I19: 745 | J19: 841 | K19: 534 | L19: 1041 | M19: 1061 | N19: 1164 | O19: 858 | P19: 1077 | Q19: 1121 | R19: 1059 | S19: 828 | T19: 949 | U19: 818 | V19: 903 | W19: 1000 | X19: 1085
C20: 701 | D20: 752 | E20: 750 | F20: 717 | G20: 651 | H20: 884 | I20: 723 | J20: 799 | K20: 520 | L20: 1016 | M20: 1022 | N20: 1126 | O20: 844 | P20: 1096 | Q20: 1121 | R20: 1015 | S20: 855 | T20: 902 | U20: 805 | V20: 959 | W20: 1033 | X20: 1049
C21: 758 | D21: 753 | E21: 749 | F21: 683 | G21: 607 | H21: 845 | I21: 758 | J21: 782 | K21: 569 | L21: 1012 | M21: 1060 | N21: 1151 | O21: 861 | P21: 1075 | Q21: 1148 | R21: 1049 | S21: 801 | T21: 959 | U21: 838 | V21: 900 | W21: 998 | X21: 1071
C22: 751 | D22: 784 | E22: 745 | F22: 726 | G22: 604 | H22: 866 | I22: 718 | J22: 797 | K22: 551 | L22: 1012 | M22: 1022 | N22: 1127 | O22: 856 | P22: 1078 | Q22: 1116 | R22: 1078 | S22: 810 | T22: 941 | U22: 843 | V22: 930 | W22: 1023 | X22: 1078
C23: 738 | D23: 738 | E23: 745 | F23: 665 | G23: 601 | H23: 875 | I23: 724 | J23: 828 | K23: 547 | L23: 1029 | M23: 1025 | N23: 1112 | O23: 836 | P23: 1111 | Q23: 1159 | R23: 1078 | S23: 858 | T23: 936 | U23: 805 | V23: 903 | W23: 1042 | X23: 1074
C24: 693 | D24: 781 | E24: 716 | F24: 671 | G24: 636 | H24: 874 | I24: 704 | J24: 799 | K24: 564 | L24: 1046 | M24: 1041 | N24: 1166 | O24: 877 | P24: 1104 | Q24: 1121 | R24: 1010 | S24: 844 | T24: 898 | U24: 817 | V24: 896 | W24: 993 | X24: 1075
C25: 738 | D25: 762 | E25: 731 | F25: 690 | G25: 625 | H25: 842 | I25: 703 | J25: 802 | K25: 535 | L25: 1043 | M25: 1087 | N25: 1148 | O25: 849 | P25: 1075 | Q25: 1100 | R25: 1074 | S25: 807 | T25: 934 | U25: 818 | V25: 942 | W25: 1040 | X25: 1079
C26: 691 | D26: 788 | E26: 761 | F26: 716 | G26: 600 | H26: 848 | I26: 759 | J26: 771 | K26: 546 | L26: 999 | M26: 1049 | N26: 1171 | O26: 890 | P26: 1084 | Q26: 1104 | R26: 1037 | S26: 812 | T26: 931 | U26: 855 | V26: 927 | W26: 1010 | X26: 1101
C27: 700 | D27: 782 | E27: 716 | F27: 722 | G27: 639 | H27: 873 | I27: 744 | J27: 838 | K27: 555 | L27: 1029 | M27: 1057 | N27: 1169 | O27: 874 | P27: 1068 | Q27: 1159 | R27: 1066 | S27: 801 | T27: 940 | U27: 798 | V27: 937 | W27: 1025 | X27: 1097
C28: 698 | D28: 788 | E28: 717 | F28: 698 | G28: 663 | H28: 851 | I28: 741 | J28: 834 | K28: 558 | L28: 999 | M28: 1050 | N28: 1121 | O28: 836 | P28: 1073 | Q28: 1147 | R28: 1074 | S28: 844 | T28: 896 | U28: 831 | V28: 929 | W28: 1010 | X28: 1100
C29: 744 | D29: 798 | E29: 769 | F29: 685 | G29: 629 | H29: 829 | I29: 733 | J29: 786 | K29: 545 | L29: 1025 | M29: 1081 | N29: 1135 | O29: 889 | P29: 1069 | Q29: 1142 | R29: 1068 | S29: 850 | T29: 929 | U29: 807 | V29: 892 | W29: 989 | X29: 1056
C30: 696 | D30: 761 | E30: 712 | F30: 708 | G30: 602 | H30: 859 | I30: 739 | J30: 788 | K30: 525 | L30: 1031 | M30: 1031 | N30: 1119 | O30: 862 | P30: 1087 | Q30: 1092 | R30: 1020 | S30: 810 | T30: 911 | U30: 851 | V30: 955 | W30: 993 | X30: 1070
C31: 745 | D31: 800 | E31: 711 | F31: 688 | G31: 613 | H31: 885 | I31: 740 | J31: 827 | K31: 535 | L31: 999 | M31: 1048 | N31: 1167 | O31: 837 | P31: 1079 | Q31: 1153 | R31: 1071 | S31: 845 | T31: 960 | U31: 799 | V31: 898 | W31: 1052 | X31: 1055
C32: 738 | D32: 763 | E32: 722 | F32: 727 | G32: 633 | H32: 842 | I32: 707 | J32: 821 | K32: 530 | L32: 999 | M32: 1057 | N32: 1133 | O32: 897 | P32: 1088 | Q32: 1156 | R32: 1028 | S32: 829 | T32: 922 | U32: 815 | V32: 903 | W32: 986 | X32: 1101
C33: 696 | D33: 756 | E33: 723 | F33: 692 | G33: 642 | H33: 858 | I33: 729 | J33: 798 | K33: 579 | L33: 1025 | M33: 1078 | N33: 1152 | O33: 852 | P33: 1087 | Q33: 1114 | R33: 1074 | S33: 863 | T33: 937 | U33: 811 | V33: 942 | W33: 1043 | X33: 1086
C34: 744 | D34: 740 | E34: 731 | F34: 668 | G34: 653 | H34: 886 | I34: 739 | J34: 782 | K34: 567 | L34: 1031 | M34: 1053 | N34: 1153 | O34: 843 | P34: 1118 | Q34: 1101 | R34: 1074 | S34: 834 | T34: 919 | U34: 799 | V34: 906 | W34: 1046 | X34: 1050
C35: 728 | D35: 777 | E35: 724 | F35: 687 | G35: 630 | H35: 842 | I35: 710 | J35: 798 | K35: 528 | L35: 1031 | M35: 1046 | N35: 1128 | O35: 873 | P35: 1069 | Q35: 1116 | R35: 1042 | S35: 799 | T35: 919 | U35: 791 | V35: 936 | W35: 1009 | X35: 1069
C36: 758 | D36: 793 | E36: 725 | F36: 678 | G36: 604 | H36: 862 | I36: 726 | J36: 836 | K36: 540 | L36: 1008 | M36: 1049 | N36: 1146 | O36: 880 | P36: 1089 | Q36: 1156 | R36: 1014 | S36: 835 | T36: 902 | U36: 822 | V36: 955 | W36: 1048 | X36: 1053
C37: 749 | D37: 742 | E37: 767 | F37: 668 | G37: 629 | H37: 878 | I37: 747 | J37: 784 | K37: 570 | L37: 1019 | M37: 1054 | N37: 1128 | O37: 844 | P37: 1090 | Q37: 1144 | R37: 1052 | S37: 846 | T37: 900 | U37: 838 | V37: 951 | W37: 1017 | X37: 1079
C38: 742 | D38: 806 | E38: 735 | F38: 688 | G38: 638 | H38: 838 | I38: 715 | J38: 831 | K38: 543 | L38: 1009 | M38: 1055 | N38: 1171 | O38: 850 | P38: 1115 | Q38: 1103 | R38: 1071 | S38: 836 | T38: 940 | U38: 791 | V38: 948 | W38: 1056 | X38: 1061
C39: 689 | D39: 774 | E39: 752 | F39: 665 | G39: 650 | H39: 829 | I39: 691 | J39: 818 | K39: 537 | L39: 1007 | M39: 1068 | N39: 1162 | O39: 854 | P39: 1070 | Q39: 1128 | R39: 1037 | S39: 856 | T39: 958 | U39: 852 | V39: 912 | W39: 988 | X39: 1088
C40: 750 | D40: 806 | E40: 764 | F40: 675 | G40: 642 | H40: 892 | I40: 722 | J40: 775 | K40: 561 | L40: 984 | M40: 1043 | N40: 1106 | O40: 870 | P40: 1072 | Q40: 1147 | R40: 1063 | S40: 799 | T40: 959 | U40: 791 | V40: 915 | W40: 1026 | X40: 1056
C41: 718 | D41: 744 | E41: 755 | F41: 698 | G41: 605 | H41: 862 | I41: 753 | J41: 790 | K41: 559 | L41: 1030 | M41: 1040 | N41: 1148 | O41: 864 | P41: 1132 | Q41: 1122 | R41: 1032 | S41: 839 | T41: 898 | U41: 810 | V41: 952 | W41: 1019 | X41: 1060
C42: 739 | D42: 790 | E42: 724 | F42: 704 | G42: 644 | H42: 881 | I42: 718 | J42: 811 | K42: 521 | L42: 1004 | M42: 1074 | N42: 1171 | O42: 883 | P42: 1065 | Q42: 1135 | R42: 1058 | S42: 824 | T42: 949 | U42: 845 | V42: 910 | W42: 1027 | X42: 1053
C43: 694 | D43: 767 | E43: 753 | F43: 705 | G43: 617 | H43: 843 | I43: 759 | J43: 805 | K43: 530 | L43: 1044 | M43: 1020 | N43: 1173 | O43: 859 | P43: 1093 | Q43: 1150 | R43: 1031 | S43: 794 | T43: 903 | U43: 788 | V43: 924 | W43: 1053 | X43: 1068
C44: 755 | D44: 757 | E44: 753 | F44: 711 | G44: 623 | H44: 861 | I44: 748 | J44: 821 | K44: 528 | L44: 978 | M44: 1027 | N44: 1107 | O44: 846 | P44: 1114 | Q44: 1137 | R44: 1011 | S44: 812 | T44: 892 | U44: 810 | V44: 943 | W44: 1025 | X44: 1090
C45: 753 | D45: 785 | E45: 767 | F45: 719 | G45: 639 | H45: 851 | I45: 736 | J45: 819 | K45: 553 | L45: 1030 | M45: 1083 | N45: 1173 | O45: 899 | P45: 1088 | Q45: 1154 | R45: 1035 | S45: 843 | T45: 919 | U45: 825 | V45: 931 | W45: 1006 | X45: 1079
C46: 735 | D46: 807 | E46: 704 | F46: 673 | G46: 612 | H46: 877 | I46: 754 | J46: 838 | K46: 556 | L46: 998 | M46: 1038 | N46: 1166 | O46: 882 | P46: 1091 | Q46: 1139 | R46: 1024 | S46: 845 | T46: 909 | U46: 840 | V46: 892 | W46: 998 | X46: 1076
C47: 701 | D47: 787 | E47: 703 | F47: 673 | G47: 641 | H47: 839 | I47: 732 | J47: 815 | K47: 540 | L47: 1003 | M47: 1080 | N47: 1139 | O47: 876 | P47: 1102 | Q47: 1098 | R47: 1037 | S47: 823 | T47: 956 | U47: 819 | V47: 894 | W47: 1049 | X47: 1107
C48: 738 | D48: 807 | E48: 749 | F48: 680 | G48: 646 | H48: 858 | I48: 737 | J48: 825 | K48: 542 | L48: 999 | M48: 1032 | N48: 1111 | O48: 840 | P48: 1113 | Q48: 1137 | R48: 1051 | S48: 826 | T48: 927 | U48: 794 | V48: 950 | W48: 1043 | X48: 1058
C49: 710 | D49: 797 | E49: 707 | F49: 703 | G49: 629 | H49: 884 | I49: 748 | J49: 790 | K49: 546 | L49: 1024 | M49: 1068 | N49: 1147 | O49: 878 | P49: 1070 | Q49: 1119 | R49: 1013 | S49: 860 | T49: 937 | U49: 788 | V49: 930 | W49: 1042 | X49: 1056
C50: 749 | D50: 791 | E50: 768 | F50: 722 | G50: 619 | H50: 869 | I50: 693 | J50: 785 | K50: 556 | L50: 1005 | M50: 1034 | N50: 1114 | O50: 842 | P50: 1084 | Q50: 1107 | R50: 1024 | S50: 801 | T50: 959 | U50: 855 | V50: 902 | W50: 1013 | X50: 1095
C51: 714 | D51: 796 | E51: 758 | F51: 705 | G51: 626 | H51: 893 | I51: 703 | J51: 806 | K51: 535 | L51: 989 | M51: 1027 | N51: 1164 | O51: 899 | P51: 1077 | Q51: 1151 | R51: 1057 | S51: 847 | T51: 944 | U51: 818 | V51: 924 | W51: 1053 | X51: 1100
C52: 749 | D52: 755 | E52: 713 | F52: 700 | G52: 608 | H52: 870 | I52: 737 | J52: 805 | K52: 535 | L52: 985 | M52: 1086 | N52: 1115 | O52: 887 | P52: 1131 | Q52: 1159 | R52: 1026 | S52: 795 | T52: 920 | U52: 834 | V52: 903 | W52: 994 | X52: 1105
C53: 712 | D53: 766 | E53: 749 | F53: 667 | G53: 649 | H53: 892 | I53: 751 | J53: 786 | K53: 517 | L53: 1037 | M53: 1026 | N53: 1158 | O53: 837 | P53: 1079 | Q53: 1133 | R53: 1029 | S53: 844 | T53: 913 | U53: 838 | V53: 939 | W53: 1025 | X53: 1053
C54: 718 | D54: 744 | E54: 733 | F54: 715 | G54: 624 | H54: 883 | I54: 736 | J54: 813 | K54: 577 | L54: 1007 | M54: 1025 | N54: 1133 | O54: 834 | P54: 1121 | Q54: 1129 | R54: 1069 | S54: 809 | T54: 940 | U54: 829 | V54: 893 | W54: 1007 | X54: 1087
C55: 694 | D55: 755 | E55: 737 | F55: 674 | G55: 660 | H55: 824 | I55: 709 | J55: 772 | K55: 518 | L55: 986 | M55: 1067 | N55: 1137 | O55: 866 | P55: 1099 | Q55: 1096 | R55: 1063 | S55: 835 | T55: 895 | U55: 825 | V55: 929 | W55: 1016 | X55: 1105
C56: 751 | D56: 773 | E56: 721 | F56: 725 | G56: 599 | H56: 876 | I56: 697 | J56: 807 | K56: 538 | L56: 992 | M56: 1027 | N56: 1107 | O56: 882 | P56: 1087 | Q56: 1145 | R56: 1025 | S56: 811 | T56: 911 | U56: 847 | V56: 926 | W56: 1029 | X56: 1069
C57: 693 | D57: 754 | E57: 704 | F57: 662 | G57: 597 | H57: 839 | I57: 740 | J57: 810 | K57: 534 | L57: 1008 | M57: 1071 | N57: 1175 | O57: 881 | P57: 1087 | Q57: 1151 | R57: 1062 | S57: 842 | T57: 895 | U57: 790 | V57: 961 | W57: 1048 | X57: 1106
C58: 747 | D58: 756 | E58: 770 | F58: 683 | G58: 636 | H58: 833 | I58: 753 | J58: 834 | K58: 555 | L58: 980 | M58: 1076 | N58: 1170 | O58: 847 | P58: 1122 | Q58: 1107 | R58: 1019 | S58: 863 | T58: 896 | U58: 812 | V58: 895 | W58: 1032 | X58: 1095
C59: 755 | D59: 790 | E59: 720 | F59: 685 | G59: 654 | H59: 893 | I59: 693 | J59: 772 | K59: 521 | L59: 1023 | M59: 1035 | N59: 1110 | O59: 900 | P59: 1073 | Q59: 1096 | R59: 1057 | S59: 808 | T59: 937 | U59: 790 | V59: 906 | W59: 997 | X59: 1092
C60: 706 | D60: 778 | E60: 745 | F60: 695 | G60: 660 | H60: 860 | I60: 744 | J60: 778 | K60: 516 | L60: 1009 | M60: 1054 | N60: 1134 | O60: 880 | P60: 1075 | Q60: 1139 | R60: 1023 | S60: 822 | T60: 926 | U60: 830 | V60: 924 | W60: 998 | X60: 1091
C61: 749 | D61: 739 | E61: 741 | F61: 671 | G61: 653 | H61: 823 | I61: 735 | J61: 813 | K61: 569 | L61: 980 | M61: 1031 | N61: 1151 | O61: 895 | P61: 1107 | Q61: 1100 | R61: 1057 | S61: 848 | T61: 939 | U61: 785 | V61: 924 | W61: 1018 | X61: 1065
C62: 733 | D62: 778 | E62: 718 | F62: 679 | G62: 613 | H62: 883 | I62: 713 | J62: 807 | K62: 520 | L62: 983 | M62: 1039 | N62: 1113 | O62: 843 | P62: 1101 | Q62: 1109 | R62: 1026 | S62: 834 | T62: 960 | U62: 795 | V62: 891 | W62: 988 | X62: 1098
C63: 702 | D63: 756 | E63: 752 | F63: 670 | G63: 608 | H63: 843 | I63: 723 | J63: 794 | K63: 546 | L63: 1029 | M63: 1038 | N63: 1158 | O63: 878 | P63: 1069 | Q63: 1118 | R63: 1031 | S63: 837 | T63: 904 | U63: 832 | V63: 922 | W63: 1051 | X63: 1054
C64: 703 | D64: 774 | E64: 737 | F64: 704 | G64: 615 | H64: 851 | I64: 735 | J64: 810 | K64: 523 | L64: 1036 | M64: 1067 | N64: 1154 | O64: 835 | P64: 1069 | Q64: 1098 | R64: 1074 | S64: 805 | T64: 928 | U64: 808 | V64: 897 | W64: 1050 | X64: 1106
C65: 731 | D65: 772 | E65: 704 | F65: 719 | G65: 635 | H65: 888 | I65: 709 | J65: 823 | K65: 564 | L65: 1026 | M65: 1021 | N65: 1161 | O65: 878 | P65: 1122 | Q65: 1106 | R65: 1047 | S65: 805 | T65: 914 | U65: 814 | V65: 910 | W65: 995 | X65: 1081
C66: 748 | D66: 767 | E66: 715 | F66: 690 | G66: 613 | H66: 871 | I66: 718 | J66: 800 | K66: 515 | L66: 1029 | M66: 1030 | N66: 1137 | O66: 867 | P66: 1076 | Q66: 1113 | R66: 1072 | S66: 863 | T66: 921 | U66: 820 | V66: 901 | W66: 999 | X66: 1050
C67: 735 | D67: 777 | E67: 767 | F67: 668 | G67: 644 | H67: 829 | I67: 736 | J67: 825 | K67: 545 | L67: 1022 | M67: 1074 | N67: 1111 | O67: 896 | P67: 1098 | Q67: 1151 | R67: 1059 | S67: 859 | T67: 944 | U67: 833 | V67: 958 | W67: 991 | X67: 1103
C68: 745 | D68: 786 | E68: 712 | F68: 677 | G68: 598 | H68: 837 | I68: 725 | J68: 835 | K68: 566 | L68: 981 | M68: 1089 | N68: 1134 | O68: 856 | P68: 1129 | Q68: 1090 | R68: 1015 | S68: 853 | T68: 894 | U68: 813 | V68: 947 | W68: 994 | X68: 1084
C69: 696 | D69: 739 | E69: 768 | F69: 690 | G69: 608 | H69: 825 | I69: 711 | J69: 835 | K69: 555 | L69: 1004 | M69: 1030 | N69: 1130 | O69: 872 | P69: 1071 | Q69: 1114 | R69: 1043 | S69: 809 | T69: 948 | U69: 842 | V69: 894 | W69: 1014 | X69: 1089
C70: 734 | D70: 783 | E70: 760 | F70: 714 | G70: 611 | H70: 864 | I70: 747 | J70: 834 | K70: 540 | L70: 978 | M70: 1087 | N70: 1145 | O70: 885 | P70: 1132 | Q70: 1122 | R70: 1029 | S70: 807 | T70: 955 | U70: 854 | V70: 906 | W70: 1052 | X70: 1077
C71: 717 | D71: 739 | E71: 713 | F71: 715 | G71: 598 | H71: 867 | I71: 717 | J71: 805 | K71: 528 | L71: 981 | M71: 1064 | N71: 1137 | O71: 899 | P71: 1095 | Q71: 1126 | R71: 1024 | S71: 838 | T71: 956 | U71: 808 | V71: 947 | W71: 1018 | X71: 1066
C72: 738 | D72: 802 | E72: 748 | F72: 695 | G72: 659 | H72: 886 | I72: 738 | J72: 791 | K72: 553 | L72: 1046 | M72: 1040 | N72: 1169 | O72: 889 | P72: 1130 | Q72: 1109 | R72: 1020 | S72: 842 | T72: 944 | U72: 839 | V72: 927 | W72: 987 | X72: 1106
C73: 709 | D73: 741 | E73: 716 | F73: 711 | G73: 663 | H73: 826 | I73: 733 | J73: 794 | K73: 572 | L73: 1038 | M73: 1070 | N73: 1150 | O73: 855 | P73: 1123 | Q73: 1121 | R73: 1040 | S73: 842 | T73: 961 | U73: 841 | V73: 950 | W73: 1028 | X73: 1101
C74: 701 | D74: 789 | E74: 716 | F74: 686 | G74: 596 | H74: 831 | I74: 698 | J74: 822 | K74: 540 | L74: 1003 | M74: 1089 | N74: 1110 | O74: 903 | P74: 1063 | Q74: 1152 | R74: 1024 | S74: 841 | T74: 930 | U74: 811 | V74: 906 | W74: 1048 | X74: 1042
C75: 737 | D75: 773 | E75: 755 | F75: 674 | G75: 659 | H75: 871 | I75: 746 | J75: 823 | K75: 522 | L75: 1017 | M75: 1036 | N75: 1155 | O75: 857 | P75: 1085 | Q75: 1118 | R75: 1013 | S75: 810 | T75: 954 | U75: 789 | V75: 899 | W75: 1031 | X75: 1062
C76: 737 | D76: 792 | E76: 770 | F76: 683 | G76: 638 | H76: 868 | I76: 693 | J76: 838 | K76: 559 | L76: 1042 | M76: 1031 | N76: 1176 | O76: 859 | P76: 1085 | Q76: 1129 | R76: 1037 | S76: 814 | T76: 927 | U76: 800 | V76: 914 | W76: 1032 | X76: 1102
C77: 728 | D77: 805 | E77: 753 | F77: 720 | G77: 599 | H77: 881 | I77: 730 | J77: 802 | K77: 513 | L77: 1043 | M77: 1043 | N77: 1171 | O77: 873 | P77: 1112 | Q77: 1102 | R77: 1021 | S77: 827 | T77: 910 | U77: 809 | V77: 910 | W77: 1024 | X77: 1070
C78: 727 | D78: 749 | E78: 743 | F78: 719 | G78: 599 | H78: 891 | I78: 742 | J78: 821 | K78: 531 | L78: 1006 | M78: 1025 | N78: 1124 | O78: 850 | P78: 1071 | Q78: 1090 | R78: 1023 | S78: 836 | T78: 949 | U78: 844 | V78: 896 | W78: 1052 | X78: 1050
C79: 691 | D79: 738 | E79: 747 | F79: 674 | G79: 596 | H79: 851 | I79: 701 | J79: 827 | K79: 521 | L79: 996 | M79: 1024 | N79: 1161 | O79: 857 | P79: 1106 | Q79: 1119 | R79: 1077 | S79: 828 | T79: 925 | U79: 793 | V79: 892 | W79: 1008 | X79: 1074
C80: 751 | D80: 748 | E80: 730 | F80: 718 | G80: 634 | H80: 874 | I80: 710 | J80: 775 | K80: 554 | L80: 1007 | M80: 1077 | N80: 1128 | O80: 878 | P80: 1093 | Q80: 1123 | R80: 1058 | S80: 848 | T80: 910 | U80: 815 | V80: 893 | W80: 1030 | X80: 1098
C81: 751 | D81: 759 | E81: 746 | F81: 694 | G81: 609 | H81: 892 | I81: 700 | J81: 814 | K81: 548 | L81: 1009 | M81: 1031 | N81: 1156 | O81: 838 | P81: 1090 | Q81: 1090 | R81: 1053 | S81: 848 | T81: 931 | U81: 808 | V81: 960 | W81: 995 | X81: 1050
C82: 748 | D82: 761 | E82: 761 | F82: 671 | G82: 634 | H82: 850 | I82: 729 | J82: 787 | K82: 566 | L82: 1042 | M82: 1053 | N82: 1135 | O82: 865 | P82: 1077 | Q82: 1144 | R82: 1013 | S82: 826 | T82: 934 | U82: 819 | V82: 907 | W82: 1018 | X82: 1093
C83: 749 | D83: 746 | E83: 711 | F83: 666 | G83: 642 | H83: 859 | I83: 742 | J83: 812 | K83: 530 | L83: 996 | M83: 1032 | N83: 1106 | O83: 850 | P83: 1130 | Q83: 1126 | R83: 1035 | S83: 842 | T83: 958 | U83: 807 | V83: 894 | W83: 1042 | X83: 1089
C84: 692 | D84: 750 | E84: 713 | F84: 718 | G84: 645 | H84: 878 | I84: 731 | J84: 780 | K84: 543 | L84: 989 | M84: 1061 | N84: 1174 | O84: 889 | P84: 1089 | Q84: 1100 | R84: 1067 | S84: 822 | T84: 922 | U84: 805 | V84: 921 | W84: 1019 | X84: 1075
C85: 691 | D85: 766 | E85: 752 | F85: 724 | G85: 653 | H85: 887 | I85: 746 | J85: 836 | K85: 558 | L85: 1010 | M85: 1025 | N85: 1128 | O85: 839 | P85: 1065 | Q85: 1144 | R85: 1045 | S85: 842 | T85: 950 | U85: 802 | V85: 935 | W85: 1003 | X85: 1107
C86: 733 | D86: 749 | E86: 723 | F86: 693 | G86: 624 | H86: 842 | I86: 705 | J86: 817 | K86: 539 | L86: 1039 | M86: 1076 | N86: 1144 | O86: 841 | P86: 1086 | Q86: 1094 | R86: 1078 | S86: 859 | T86: 928 | U86: 849 | V86: 905 | W86: 1032 | X86: 1051
C87: 706 | D87: 791 | E87: 720 | F87: 701 | G87: 616 | H87: 845 | I87: 758 | J87: 841 | K87: 537 | L87: 1019 | M87: 1020 | N87: 1155 | O87: 841 | P87: 1129 | Q87: 1104 | R87: 1041 | S87: 797 | T87: 946 | U87: 812 | V87: 892 | W87: 1017 | X87: 1081
C88: 725 | D88: 791 | E88: 742 | F88: 701 | G88: 641 | H88: 861 | I88: 701 | J88: 836 | K88: 551 | L88: 1042 | M88: 1038 | N88: 1145 | O88: 851 | P88: 1133 | Q88: 1133 | R88: 1048 | S88: 824 | T88: 914 | U88: 815 | V88: 894 | W88: 989 | X88: 1091
C89: 725 | D89: 763 | E89: 722 | F89: 690 | G89: 609 | H89: 842 | I89: 720 | J89: 833 | K89: 520 | L89: 1024 | M89: 1064 | N89: 1110 | O89: 858 | P89: 1125 | Q89: 1154 | R89: 1077 | S89: 816 | T89: 900 | U89: 816 | V89: 912 | W89: 1007 | X89: 1045
C90: 731 | D90: 742 | E90: 728 | F90: 667 | G90: 658 | H90: 880 | I90: 741 | J90: 834 | K90: 519 | L90: 990 | M90: 1050 | N90: 1149 | O90: 847 | P90: 1102 | Q90: 1140 | R90: 1062 | S90: 826 | T90: 939 | U90: 816 | V90: 961 | W90: 1040 | X90: 1078
C91: 750 | D91: 787 | E91: 758 | F91: 695 | G91: 635 | H91: 858 | I91: 750 | J91: 784 | K91: 510 | L91: 1011 | M91: 1035 | N91: 1171 | O91: 852 | P91: 1133 | Q91: 1147 | R91: 1064 | S91: 861 | T91: 953 | U91: 796 | V91: 950 | W91: 986 | X91: 1069
C92: 753 | D92: 751 | E92: 704 | F92: 671 | G92: 636 | H92: 887 | I92: 698 | J92: 837 | K92: 525 | L92: 1027 | M92: 1030 | N92: 1121 | O92: 861 | P92: 1099 | Q92: 1153 | R92: 1039 | S92: 806 | T92: 931 | U92: 830 | V92: 921 | W92: 1034 | X92: 1055
C93: 731 | D93: 757 | E93: 719 | F93: 690 | G93: 653 | H93: 891 | I93: 723 | J93: 805 | K93: 552 | L93: 1027 | M93: 1065 | N93: 1161 | O93: 887 | P93: 1064 | Q93: 1133 | R93: 1069 | S93: 820 | T93: 939 | U93: 818 | V93: 932 | W93: 997 | X93: 1096
C94: 694 | D94: 764 | E94: 718 | F94: 705 | G94: 619 | H94: 823 | I94: 721 | J94: 813 | K94: 529 | L94: 1035 | M94: 1071 | N94: 1142 | O94: 842 | P94: 1120 | Q94: 1100 | R94: 1040 | S94: 862 | T94: 955 | U94: 852 | V94: 900 | W94: 1032 | X94: 1088
C95: 743 | D95: 740 | E95: 705 | F95: 727 | G95: 634 | H95: 860 | I95: 758 | J95: 791 | K95: 535 | L95: 1027 | M95: 1039 | N95: 1136 | O95: 876 | P95: 1086 | Q95: 1144 | R95: 1045 | S95: 840 | T95: 935 | U95: 817 | V95: 903 | W95: 1020 | X95: 1064
C96: 697 | D96: 778 | E96: 706 | F96: 669 | G96: 614 | H96: 871 | I96: 694 | J96: 779 | K96: 538 | L96: 1036 | M96: 1064 | N96: 1149 | O96: 867 | P96: 1117 | Q96: 1115 | R96: 1039 | S96: 816 | T96: 910 | U96: 809 | V96: 891 | W96: 1007 | X96: 1052
C97: 726 | D97: 753 | E97: 765 | F97: 713 | G97: 648 | H97: 824 | I97: 743 | J97: 776 | K97: 562 | L97: 998 | M97: 1068 | N97: 1126 | O97: 846 | P97: 1106 | Q97: 1102 | R97: 1029 | S97: 862 | T97: 908 | U97: 827 | V97: 926 | W97: 1042 | X97: 1048
C98: 718 | D98: 797 | E98: 751 | F98: 678 | G98: 664 | H98: 835 | I98: 694 | J98: 775 | K98: 529 | L98: 978 | M98: 1063 | N98: 1128 | O98: 846 | P98: 1129 | Q98: 1125 | R98: 1042 | S98: 825 | T98: 930 | U98: 853 | V98: 914 | W98: 987 | X98: 1055
C99: 745 | D99: 780 | E99: 739 | F99: 686 | G99: 636 | H99: 892 | I99: 708 | J99: 818 | K99: 571 | L99: 981 | M99: 1044 | N99: 1141 | O99: 876 | P99: 1127 | Q99: 1108 | R99: 1024 | S99: 816 | T99: 934 | U99: 851 | V99: 891 | W99: 1030 | X99: 1051
C100: 752 | D100: 746 | E100: 709 | F100: 713 | G100: 636 | H100: 839 | I100: 708 | J100: 808 | K100: 575 | L100: 1035 | M100: 1043 | N100: 1171 | O100: 845 | P100: 1099 | Q100: 1144 | R100: 1068 | S100: 840 | T100: 894 | U100: 809 | V100: 958 | W100: 1039 | X100: 1061
C101: 693 | D101: 778 | E101: 703 | F101: 692 | G101: 648 | H101: 829 | I101: 693 | J101: 776 | K101: 566 | L101: 1009 | M101: 1027 | N101: 1164 | O101: 860 | P101: 1080 | Q101: 1152 | R101: 1066 | S101: 856 | T101: 910 | U101: 812 | V101: 921 | W101: 1036 | X101: 1097
C102: 702 | D102: 771 | E102: 737 | F102: 692 | G102: 611 | H102: 871 | I102: 732 | J102: 794 | K102: 560 | L102: 982 | M102: 1026 | N102: 1137 | O102: 858 | P102: 1130 | Q102: 1157 | R102: 1077 | S102: 794 | T102: 914 | U102: 813 | V102: 896 | W102: 996 | X102: 1089
C103: 737 | D103: 764 | E103: 749 | F103: 663 | G103: 607 | H103: 876 | I103: 706 | J103: 801 | K103: 535 | L103: 1015 | M103: 1087 | N103: 1120 | O103: 858 | P103: 1067 | Q103: 1119 | R103: 1017 | S103: 832 | T103: 908 | U103: 807 | V103: 909 | W103: 1002 | X103: 1086
C104: 695 | D104: 778 | E104: 709 | F104: 670 | G104: 662 | H104: 833 | I104: 707 | J104: 813 | K104: 561 | L104: 998 | M104: 1048 | N104: 1134 | O104: 871 | P104: 1115 | Q104: 1140 | R104: 1047 | S104: 801 | T104: 955 | U104: 846 | V104: 947 | W104: 1027 | X104: 1059
C105: 708 | D105: 783 | E105: 771 | F105: 720 | G105: 602 | H105: 850 | I105: 747 | J105: 773 | K105: 534 | L105: 977 | M105: 1056 | N105: 1130 | O105: 853 | P105: 1089 | Q105: 1155 | R105: 1045 | S105: 814 | T105: 950 | U105: 818 | V105: 941 | W105: 993 | X105: 1084
C106: 730 | D106: 748 | E106: 732 | F106: 703 | G106: 639 | H106: 890 | I106: 739 | J106: 834 | K106: 556 | L106: 1017 | M106: 1038 | N106: 1142 | O106: 887 | P106: 1089 | Q106: 1134 | R106: 1071 | S106: 846 | T106: 961 | U106: 855 | V106: 931 | W106: 1007 | X106: 1061
C107: 756 | D107: 782 | E107: 772 | F107: 688 | G107: 642 | H107: 884 | I107: 753 | J107: 798 | K107: 554 | L107: 1011 | M107: 1026 | N107: 1137 | O107: 864 | P107: 1063 | Q107: 1128 | R107: 1043 | S107: 824 | T107: 908 | U107: 817 | V107: 943 | W107: 1047 | X107: 1064
C108: 755 | D108: 752 | E108: 742 | F108: 705 | G108: 648 | H108: 843 | I108: 741 | J108: 786 | K108: 551 | L108: 1021 | M108: 1027 | N108: 1139 | O108: 836 | P108: 1122 | Q108: 1137 | R108: 1047 | S108: 828 | T108: 949 | U108: 850 | V108: 917 | W108: 1031 | X108: 1067
C109: 731 | D109: 758 | E109: 746 | F109: 687 | G109: 600 | H109: 874 | I109: 724 | J109: 787 | K109: 561 | L109: 1006 | M109: 1046 | N109: 1146 | O109: 898 | P109: 1098 | Q109: 1103 | R109: 1067 | S109: 864 | T109: 902 | U109: 843 | V109: 929 | W109: 986 | X109: 1078
C110: 719 | D110: 778 | E110: 712 | F110: 718 | G110: 615 | H110: 832 | I110: 706 | J110: 772 | K110: 523 | L110: 1014 | M110: 1019 | N110: 1166 | O110: 886 | P110: 1130 | Q110: 1145 | R110: 1078 | S110: 820 | T110: 947 | U110: 792 | V110: 941 | W110: 1002 | X110: 1056
C111: 740 | D111: 757 | E111: 711 | F111: 704 | G111: 614 | H111: 872 | I111: 705 | J111: 801 | K111: 566 | L111: 1013 | M111: 1065 | N111: 1174 | O111: 880 | P111: 1129 | Q111: 1115 | R111: 1042 | S111: 794 | T111: 910 | U111: 831 | V111: 943 | W111: 992 | X111: 1093
C112: 716 | D112: 772 | E112: 760 | F112: 663 | G112: 624 | H112: 841 | I112: 714 | J112: 834 | K112: 511 | L112: 1033 | M112: 1049 | N112: 1175 | O112: 867 | P112: 1066 | Q112: 1125 | R112: 1071 | S112: 839 | T112: 926 | U112: 803 | V112: 941 | W112: 1019 | X112: 1108
C113: 731 | D113: 801 | E113: 722 | F113: 720 | G113: 637 | H113: 892 | I113: 731 | J113: 783 | K113: 518 | L113: 1008 | M113: 1066 | N113: 1126 | O113: 878 | P113: 1112 | Q113: 1108 | R113: 1038 | S113: 838 | T113: 949 | U113: 838 | V113: 948 | W113: 1056 | X113: 1066
C114: 704 | D114: 794 | E114: 771 | F114: 696 | G114: 595 | H114: 853 | I114: 733 | J114: 803 | K114: 542 | L114: 977 | M114: 1044 | N114: 1170 | O114: 849 | P114: 1123 | Q114: 1109 | R114: 1030 | S114: 809 | T114: 904 | U114: 787 | V114: 919 | W114: 1037 | X114: 1100
C115: 702 | D115: 773 | E115: 716 | F115: 719 | G115: 631 | H115: 826 | I115: 690 | J115: 774 | K115: 534 | L115: 1020 | M115: 1080 | N115: 1173 | O115: 837 | P115: 1070 | Q115: 1120 | R115: 1053 | S115: 796 | T115: 919 | U115: 829 | V115: 934 | W115: 1001 | X115: 1098
C116: 722 | D116: 766 | E116: 731 | F116: 695 | G116: 605 | H116: 880 | I116: 740 | J116: 822 | K116: 520 | L116: 996 | M116: 1078 | N116: 1107 | O116: 888 | P116: 1084 | Q116: 1131 | R116: 1037 | S116: 801 | T116: 903 | U116: 807 | V116: 913 | W116: 1032 | X116: 1088
C117: 702 | D117: 752 | E117: 719 | F117: 678 | G117: 642 | H117: 846 | I117: 706 | J117: 806 | K117: 576 | L117: 1028 | M117: 1039 | N117: 1168 | O117: 864 | P117: 1123 | Q117: 1095 | R117: 1067 | S117: 846 | T117: 925 | U117: 828 | V117: 932 | W117: 1039 | X117: 1096
C118: 758 | D118: 773 | E118: 743 | F118: 714 | G118: 620 | H118: 873 | I118: 700 | J118: 816 | K118: 568 | L118: 983 | M118: 1071 | N118: 1107 | O118: 850 | P118: 1068 | Q118: 1132 | R118: 1068 | S118: 823 | T118: 895 | U118: 833 | V118: 899 | W118: 1049 | X118: 1098
C119: 748 | D119: 754 | E119: 732 | F119: 670 | G119: 618 | H119: 867 | I119: 697 | J119: 818 | K119: 576 | L119: 1007 | M119: 1020 | N119: 1151 | O119: 854 | P119: 1074 | Q119: 1144 | R119: 1036 | S119: 836 | T119: 925 | U119: 821 | V119: 933 | W119: 1032 | X119: 1090
C120: 749 | D120: 771 | E120: 734 | F120: 659 | G120: 624 | H120: 838 | I120: 733 | J120: 834 | K120: 528 | L120: 1009 | M120: 1029 | N120: 1169 | O120: 850 | P120: 1088 | Q120: 1137 | R120: 1070 | S120: 818 | T120: 914 | U120: 843 | V120: 931 | W120: 1043 | X120: 1039
C121: 708 | D121: 749 | E121: 749 | F121: 707 | G121: 630 | H121: 835 | I121: 696 | J121: 786 | K121: 536 | L121: 1022 | M121: 1058 | N121: 1110 | O121: 875 | P121: 1117 | Q121: 1140 | R121: 1012 | S121: 795 | T121: 913 | U121: 821 | V121: 898 | W121: 998 | X121: 1091
C122: 746 | D122: 765 | E122: 758 | F122: 708 | G122: 629 | H122: 832 | I122: 750 | J122: 795 | K122: 528 | L122: 1006 | M122: 1073 | N122: 1158 | O122: 841 | P122: 1070 | Q122: 1158 | R122: 1029 | S122: 807 | T122: 925 | U122: 855 | V122: 955 | W122: 1013 | X122: 1048
C123: 730 | D123: 749 | E123: 756 | F123: 713 | G123: 636 | H123: 864 | I123: 736 | J123: 816 | K123: 512 | L123: 1028 | M123: 1073 | N123: 1170 | O123: 876 | P123: 1080 | Q123: 1098 | R123: 1065 | S123: 858 | T123: 958 | U123: 851 | V123: 957 | W123: 1056 | X123: 1108
C124: 703 | D124: 797 | E124: 704 | F124: 669 | G124: 600 | H124: 827 | I124: 742 | J124: 809 | K124: 511 | L124: 1033 | M124: 1055 | N124: 1156 | O124: 840 | P124: 1088 | Q124: 1092 | R124: 1017 | S124: 835 | T124: 903 | U124: 794 | V124: 941 | W124: 1040 | X124: 1063
C125: 723 | D125: 783 | E125: 719 | F125: 699 | G125: 657 | H125: 876 | I125: 705 | J125: 811 | K125: 548 | L125: 978 | M125: 1047 | N125: 1134 | O125: 858 | P125: 1126 | Q125: 1152 | R125: 1039 | S125: 856 | T125: 961 | U125: 853 | V125: 929 | W125: 1015 | X125: 1059
C126: 711 | D126: 789 | E126: 723 | F126: 705 | G126: 598 | H126: 845 | I126: 700 | J126: 779 | K126: 531 | L126: 990 | M126: 1058 | N126: 1123 | O126: 868 | P126: 1098 | Q126: 1111 | R126: 1060 | S126: 840 | T126: 930 | U126: 855 | V126: 912 | W126: 1012 | X126: 1082
C127: 705 | D127: 806 | E127: 718 | F127: 675 | G127: 621 | H127: 823 | I127: 742 | J127: 828 | K127: 514 | L127: 1042 | M127: 1044 | N127: 1165 | O127: 850 | P127: 1116 | Q127: 1144 | R127: 1041 | S127: 831 | T127: 900 | U127: 803 | V127: 926 | W127: 1053 | X127: 1098
C128: 715 | D128: 771 | E128: 702 | F128: 665 | G128: 612 | H128: 825 | I128: 750 | J128: 775 | K128: 563 | L128: 1043 | M128: 1062 | N128: 1120 | O128: 852 | P128: 1093 | Q128: 1098 | R128: 1053 | S128: 864 | T128: 899 | U128: 798 | V128: 942 | W128: 1030 | X128: 1049
C129: 759 | D129: 802 | E129: 729 | F129: 662 | G129: 660 | H129: 833 | I129: 747 | J129: 808 | K129: 525 | L129: 1015 | M129: 1026 | N129: 1109 | O129: 855 | P129: 1120 | Q129: 1133 | R129: 1046 | S129: 821 | T129: 956 | U129: 785 | V129: 936 | W129: 1005 | X129: 1054
C130: 722 | D130: 764 | E130: 702 | F130: 702 | G130: 615 | H130: 833 | I130: 692 | J130: 804 | K130: 540 | L130: 1010 | M130: 1070 | N130: 1119 | O130: 870 | P130: 1110 | Q130: 1092 | R130: 1019 | S130: 799 | T130: 907 | U130: 790 | V130: 911 | W130: 1008 | X130: 1107
C131: 720 | D131: 799 | E131: 709 | F131: 715 | G131: 611 | H131: 839 | I131: 759 | J131: 836 | K131: 572 | L131: 1015 | M131: 1074 | N131: 1116 | O131: 854 | P131: 1117 | Q131: 1149 | R131: 1063 | S131: 856 | T131: 917 | U131: 838 | V131: 921 | W131: 1056 | X131: 1101
C132: 751 | D132: 803 | E132: 718 | F132: 721 | G132: 611 | H132: 847 | I132: 736 | J132: 827 | K132: 517 | L132: 995 | M132: 1035 | N132: 1165 | O132: 866 | P132: 1105 | Q132: 1097 | R132: 1060 | S132: 804 | T132: 917 | U132: 807 | V132: 930 | W132: 1031 | X132: 1071
C133: 745 | D133: 778 | E133: 716 | F133: 721 | G133: 603 | H133: 869 | I133: 709 | J133: 821 | K133: 515 | L133: 977 | M133: 1055 | N133: 1173 | O133: 855 | P133: 1128 | Q133: 1124 | R133: 1017 | S133: 803 | T133: 893 | U133: 823 | V133: 958 | W133: 995 | X133: 1070
C134: 756 | D134: 761 | E134: 738 | F134: 704 | G134: 637 | H134: 864 | I134: 758 | J134: 812 | K134: 534 | L134: 1016 | M134: 1076 | N134: 1111 | O134: 873 | P134: 1107 | Q134: 1144 | R134: 1050 | S134: 834 | T134: 925 | U134: 795 | V134: 941 | W134: 1031 | X134: 1100
C135: 698 | D135: 767 | E135: 767 | F135: 699 | G135: 648 | H135: 869 | I135: 727 | J135: 788 | K135: 540 | L135: 1014 | M135: 1079 | N135: 1157 | O135: 869 | P135: 1127 | Q135: 1114 | R135: 1032 | S135: 803 | T135: 893 | U135: 821 | V135: 918 | W135: 1041 | X135: 1080
C136: 718 | D136: 790 | E136: 708 | F136: 663 | G136: 600 | H136: 876 | I136: 712 | J136: 800 | K136: 559 | L136: 1009 | M136: 1049 | N136: 1149 | O136: 846 | P136: 1127 | Q136: 1117 | R136: 1026 | S136: 843 | T136: 918 | U136: 793 | V136: 927 | W136: 1000 | X136: 1057
C137: 692 | D137: 768 | E137: 772 | F137: 692 | G137: 631 | H137: 881 | I137: 696 | J137: 784 | K137: 515 | L137: 1028 | M137: 1069 | N137: 1141 | O137: 840 | P137: 1082 | Q137: 1108 | R137: 1045 | S137: 821 | T137: 896 | U137: 816 | V137: 945 | W137: 1054 | X137: 1089
C138: 723 | D138: 782 | E138: 746 | F138: 695 | G138: 625 | H138: 863 | I138: 727 | J138: 776 | K138: 575 | L138: 996 | M138: 1052 | N138: 1153 | O138: 871 | P138: 1116 | Q138: 1141 | R138: 1057 | S138: 840 | T138: 952 | U138: 837 | V138: 944 | W138: 1033 | X138: 1044
C139: 693 | D139: 747 | E139: 762 | F139: 678 | G139: 596 | H139: 842 | I139: 695 | J139: 808 | K139: 563 | L139: 1040 | M139: 1023 | N139: 1117 | O139: 844 | P139: 1070 | Q139: 1139 | R139: 1075 | S139: 864 | T139: 923 | U139: 801 | V139: 957 | W139: 1008 | X139: 1100
C140: 732 | D140: 764 | E140: 737 | F140: 685 | G140: 612 | H140: 881 | I140: 691 | J140: 779 | K140: 544 | L140: 1002 | M140: 1039 | N140: 1112 | O140: 883 | P140: 1094 | Q140: 1116 | R140: 1068 | S140: 829 | T140: 897 | U140: 827 | V140: 912 | W140: 987 | X140: 1042
C141: 696 | D141: 754 | E141: 731 | F141: 721 | G141: 607 | H141: 845 | I141: 690 | J141: 832 | K141: 573 | L141: 1020 | M141: 1044 | N141: 1176 | O141: 866 | P141: 1094 | Q141: 1116 | R141: 1034 | S141: 796 | T141: 903 | U141: 798 | V141: 904 | W141: 1022 | X141: 1061
C142: 744 | D142: 745 | E142: 758 | F142: 702 | G142: 623 | H142: 891 | I142: 701 | J142: 795 | K142: 522 | L142: 988 | M142: 1047 | N142: 1148 | O142: 852 | P142: 1081 | Q142: 1149 | R142: 1037 | S142: 844 | T142: 928 | U142: 792 | V142: 955 | W142: 1038 | X142: 1096
C143: 755 | D143: 795 | E143: 733 | F143: 691 | G143: 597 | H143: 890 | I143: 736 | J143: 807 | K143: 529 | L143: 1020 | M143: 1053 | N143: 1171 | O143: 864 | P143: 1075 | Q143: 1145 | R143: 1043 | S143: 819 | T143: 942 | U143: 853 | V143: 908 | W143: 1038 | X143: 1049
C144: 719 | D144: 753 | E144: 749 | F144: 686 | G144: 664 | H144: 867 | I144: 725 | J144: 771 | K144: 568 | L144: 985 | M144: 1058 | N144: 1127 | O144: 877 | P144: 1071 | Q144: 1114 | R144: 1018 | S144: 851 | T144: 934 | U144: 844 | V144: 894 | W144: 991 | X144: 1074
C145: 737 | D145: 807 | E145: 751 | F145: 703 | G145: 618 | H145: 823 | I145: 697 | J145: 824 | K145: 570 | L145: 993 | M145: 1036 | N145: 1154 | O145: 885 | P145: 1112 | Q145: 1151 | R145: 1037 | S145: 799 | T145: 933 | U145: 824 | V145: 902 | W145: 1001 | X145: 1071
C146: 699 | D146: 801 | E146: 711 | F146: 682 | G146: 650 | H146: 848 | I146: 719 | J146: 812 | K146: 523 | L146: 1017 | M146: 1079 | N146: 1159 | O146: 854 | P146: 1095 | Q146: 1120 | R146: 1050 | S146: 813 | T146: 893 | U146: 797 | V146: 943 | W146: 1035 | X146: 1055
C147: 732 | D147: 759 | E147: 725 | F147: 703 | G147: 635 | H147: 847 | I147: 739 | J147: 777 | K147: 523 | L147: 1016 | M147: 1036 | N147: 1175 | O147: 879 | P147: 1111 | Q147: 1153 | R147: 1045 | S147: 856 | T147: 947 | U147: 804 | V147: 939 | W147: 1017 | X147: 1093
C148: 729 | D148: 789 | E148: 704 | F148: 702 | G148: 638 | H148: 889 | I148: 753 | J148: 830 | K148: 517 | L148: 1032 | M148: 1077 | N148: 1131 | O148: 849 | P148: 1100 | Q148: 1133 | R148: 1027 | S148: 833 | T148: 923 | U148: 797 | V148: 952 | W148: 1004 | X148: 1045
C149: 754 | D149: 801 | E149: 752 | F149: 710 | G149: 595 | H149: 837 | I149: 743 | J149: 837 | K149: 542 | L149: 1006 | M149: 1034 | N149: 1143 | O149: 836 | P149: 1126 | Q149: 1094 | R149: 1050 | S149: 810 | T149: 939 | U149: 825 | V149: 903 | W149: 1001 | X149: 1047
C150: 725 | D150: 756 | E150: 717 | F150: 694 | G150: 629 | H150: 823 | I150: 754 | J150: 835 | K150: 544 | L150: 993 | M150: 1071 | N150: 1140 | O150: 880 | P150: 1114 | Q150: 1128 | R150: 1043 | S150: 823 | T150: 900 | U150: 851 | V150: 892 | W150: 1052 | X150: 1077
C151: 742 | D151: 783 | E151: 744 | F151: 668 | G151: 602 | H151: 860 | I151: 690 | J151: 787 | K151: 544 | L151: 999 | M151: 1082 | N151: 1152 | O151: 836 | P151: 1088 | Q151: 1099 | R151: 1062 | S151: 839 | T151: 958 | U151: 824 | V151: 918 | W151: 1021 | X151: 1072
C152: 757 | D152: 775 | E152: 715 | F152: 666 | G152: 641 | H152: 880 | I152: 750 | J152: 831 | K152: 539 | L152: 991 | M152: 1085 | N152: 1135 | O152: 876 | P152: 1129 | Q152: 1145 | R152: 1053 | S152: 853 | T152: 929 | U152: 797 | V152: 905 | W152: 991 | X152: 1072
C153: 691 | D153: 766 | E153: 721 | F153: 721 | G153: 645 | H153: 848 | I153: 755 | J153: 779 | K153: 548 | L153: 1044 | M153: 1068 | N153: 1141 | O153: 891 | P153: 1119 | Q153: 1113 | R153: 1064 | S153: 814 | T153: 931 | U153: 853 | V153: 917 | W153: 1017 | X153: 1096
C154: 758 | D154: 797 | E154: 705 | F154: 700 | G154: 663 | H154: 890 | I154: 726 | J154: 794 | K154: 575 | L154: 1032 | M154: 1033 | N154: 1114 | O154: 879 | P154: 1099 | Q154: 1095 | R154: 1079 | S154: 797 | T154: 934 | U154: 805 | V154: 934 | W154: 1023 | X154: 1081
C155: 756 | D155: 804 | E155: 734 | F155: 664 | G155: 601 | H155: 862 | I155: 707 | J155: 791 | K155: 546 | L155: 1041 | M155: 1075 | N155: 1113 | O155: 898 | P155: 1083 | Q155: 1117 | R155: 1034 | S155: 840 | T155: 958 | U155: 817 | V155: 897 | W155: 1045 | X155: 1094
C156: 739 | D156: 741 | E156: 717 | F156: 707 | G156: 606 | H156: 892 | I156: 717 | J156: 799 | K156: 579 | L156: 1025 | M156: 1069 | N156: 1128 | O156: 864 | P156: 1085 | Q156: 1122 | R156: 1046 | S156: 798 | T156: 949 | U156: 792 | V156: 935 | W156: 1000 | X156: 1063
C157: 755 | D157: 801 | E157: 731 | F157: 691 | G157: 663 | H157: 891 | I157: 713 | J157: 838 | K157: 553 | L157: 977 | M157: 1069 | N157: 1143 | O157: 892 | P157: 1070 | Q157: 1119 | R157: 1070 | S157: 846 | T157: 946 | U157: 806 | V157: 892 | W157: 1009 | X157: 1074
C158: 755 | D158: 781 | E158: 756 | F158: 676 | G158: 632 | H158: 881 | I158: 728 | J158: 794 | K158: 539 | L158: 1012 | M158: 1079 | N158: 1134 | O158: 864 | P158: 1118 | Q158: 1159 | R158: 1020 | S158: 852 | T158: 941 | U158: 831 | V158: 927 | W158: 1032 | X158: 1048
C159: 702 | D159: 787 | E159: 764 | F159: 695 | G159: 628 | H159: 851 | I159: 731 | J159: 824 | K159: 548 | L159: 1006 | M159: 1065 | N159: 1126 | O159: 896 | P159: 1081 | Q159: 1150 | R159: 1010 | S159: 799 | T159: 899 | U159: 807 | V159: 953 | W159: 1050 | X159: 1094
C160: 742 | D160: 775 | E160: 753 | F160: 684 | G160: 616 | H160: 835 | I160: 734 | J160: 828 | K160: 564 | L160: 1039 | M160: 1059 | N160: 1106 | O160: 888 | P160: 1082 | Q160: 1110 | R160: 1071 | S160: 800 | T160: 958 | U160: 824 | V160: 913 | W160: 988 | X160: 1090
C161: 698 | D161: 799 | E161: 713 | F161: 688 | G161: 635 | H161: 888 | I161: 708 | J161: 803 | K161: 509 | L161: 990 | M161: 1041 | N161: 1108 | O161: 843 | P161: 1086 | Q161: 1128 | R161: 1022 | S161: 834 | T161: 892 | U161: 824 | V161: 904 | W161: 990 | X161: 1062
C162: 753 | D162: 798 | E162: 740 | F162: 697 | G162: 633 | H162: 880 | I162: 751 | J162: 785 | K162: 538 | L162: 1047 | M162: 1074 | N162: 1125 | O162: 852 | P162: 1075 | Q162: 1157 | R162: 1025 | S162: 844 | T162: 960 | U162: 845 | V162: 924 | W162: 1045 | X162: 1054
C163: 748 | D163: 757 | E163: 758 | F163: 659 | G163: 617 | H163: 883 | I163: 716 | J163: 833 | K163: 542 | L163: 978 | M163: 1081 | N163: 1140 | O163: 847 | P163: 1115 | Q163: 1119 | R163: 1061 | S163: 860 | T163: 899 | U163: 852 | V163: 960 | W163: 1015 | X163: 1071
C164: 720 | D164: 773 | E164: 739 | F164: 712 | G164: 622 | H164: 863 | I164: 695 | J164: 786 | K164: 572 | L164: 1032 | M164: 1033 | N164: 1108 | O164: 835 | P164: 1112 | Q164: 1093 | R164: 1057 | S164: 829 | T164: 942 | U164: 846 | V164: 956 | W164: 1011 | X164: 1068
C165: 743 | D165: 799 | E165: 732 | F165: 661 | G165: 603 | H165: 825 | I165: 712 | J165: 772 | K165: 530 | L165: 996 | M165: 1046 | N165: 1109 | O165: 878 | P165: 1127 | Q165: 1144 | R165: 1073 | S165: 817 | T165: 909 | U165: 797 | V165: 927 | W165: 1016 | X165: 1040
C166: 757 | D166: 789 | E166: 735 | F166: 666 | G166: 627 | H166: 880 | I166: 708 | J166: 820 | K166: 558 | L166: 1027 | M166: 1021 | N166: 1142 | O166: 834 | P166: 1090 | Q166: 1124 | R166: 1064 | S166: 818 | T166: 952 | U166: 818 | V166: 932 | W166: 1022 | X166: 1067
C167: 745 | D167: 754 | E167: 764 | F167: 696 | G167: 631 | H167: 833 | I167: 749 | J167: 823 | K167: 529 | L167: 1046 | M167: 1020 | N167: 1139 | O167: 848 | P167: 1125 | Q167: 1113 | R167: 1021 | S167: 837 | T167: 919 | U167: 829 | V167: 918 | W167: 999 | X167: 1040
C168: 750 | D168: 774 | E168: 752 | F168: 670 | G168: 644 | H168: 890 | I168: 697 | J168: 841 | K168: 521 | L168: 981 | M168: 1031 | N168: 1161 | O168: 834 | P168: 1078 | Q168: 1138 | R168: 1038 | S168: 807 | T168: 913 | U168: 847 | V168: 937 | W168: 990 | X168: 1062
C169: 752 | D169: 776 | E169: 722 | F169: 666 | G169: 625 | H169: 824 | I169: 753 | J169: 826 | K169: 528 | L169: 1028 | M169: 1050 | N169: 1116 | O169: 856 | P169: 1108 | Q169: 1093 | R169: 1074 | S169: 807 | T169: 910 | U169: 825 | V169: 947 | W169: 997 | X169: 1076
C170: 745 | D170: 799 | E170: 766 | F170: 696 | G170: 640 | H170: 863 | I170: 738 | J170: 830 | K170: 569 | L170: 1003 | M170: 1034 | N170: 1117 | O170: 895 | P170: 1097 | Q170: 1096 | R170: 1060 | S170: 818 | T170: 940 | U170: 823 | V170: 912 | W170: 1006 | X170: 1100
C171: 731 | D171: 786 | E171: 739 | F171: 709 | G171: 636 | H171: 881 | I171: 717 | J171: 782 | K171: 511 | L171: 1043 | M171: 1078 | N171: 1156 | O171: 836 | P171: 1129 | Q171: 1147 | R171: 1077 | S171: 800 | T171: 949 | U171: 835 | V171: 950 | W171: 1003 | X171: 1077
C172: 706 | D172: 771 | E172: 761 | F172: 717 | G172: 663 | H172: 830 | I172: 738 | J172: 786 | K172: 576 | L172: 1000 | M172: 1045 | N172: 1145 | O172: 863 | P172: 1116 | Q172: 1125 | R172: 1047 | S172: 820 | T172: 932 | U172: 785 | V172: 924 | W172: 1018 | X172: 1097
C173: 699 | D173: 783 | E173: 743 | F173: 679 | G173: 647 | H173: 839 | I173: 744 | J173: 803 | K173: 519 | L173: 1031 | M173: 1087 | N173: 1112 | O173: 852 | P173: 1097 | Q173: 1116 | R173: 1061 | S173: 814 | T173: 926 | U173: 785 | V173: 913 | W173: 988 | X173: 1087
C174: 695 | D174: 783 | E174: 710 | F174: 711 | G174: 654 | H174: 876 | I174: 711 | J174: 815 | K174: 570 | L174: 1010 | M174: 1023 | N174: 1170 | O174: 873 | P174: 1111 | Q174: 1151 | R174: 1076 | S174: 816 | T174: 895 | U174: 847 | V174: 897 | W174: 1036 | X174: 1107
C175: 730 | D175: 761 | E175: 735 | F175: 722 | G175: 624 | H175: 845 | I175: 723 | J175: 800 | K175: 564 | L175: 989 | M175: 1020 | N175: 1136 | O175: 902 | P175: 1126 | Q175: 1145 | R175: 1049 | S175: 808 | T175: 909 | U175: 826 | V175: 948 | W175: 1051 | X175: 1058
C176: 711 | D176: 773 | E176: 731 | F176: 695 | G176: 650 | H176: 864 | I176: 714 | J176: 837 | K176: 534 | L176: 1014 | M176: 1073 | N176: 1140 | O176: 851 | P176: 1119 | Q176: 1149 | R176: 1049 | S176: 825 | T176: 900 | U176: 841 | V176: 956 | W176: 997 | X176: 1043
C177: 755 | D177: 774 | E177: 767 | F177: 679 | G177: 651 | H177: 843 | I177: 690 | J177: 806 | K177: 532 | L177: 1011 | M177: 1028 | N177: 1121 | O177: 861 | P177: 1109 | Q177: 1136 | R177: 1041 | S177: 809 | T177: 956 | U177: 827 | V177: 930 | W177: 994 | X177: 1066
C178: 697 | D178: 788 | E178: 768 | F178: 682 | G178: 659 | H178: 846 | I178: 689 | J178: 822 | K178: 565 | L178: 987 | M178: 1031 | N178: 1166 | O178: 853 | P178: 1115 | Q178: 1112 | R178: 1049 | S178: 843 | T178: 956 | U178: 818 | V178: 943 | W178: 1000 | X178: 1051
C179: 726 | D179: 804 | E179: 716 | F179: 674 | G179: 631 | H179: 874 | I179: 708 | J179: 772 | K179: 578 | L179: 1009 | M179: 1082 | N179: 1146 | O179: 860 | P179: 1114 | Q179: 1153 | R179: 1043 | S179: 799 | T179: 899 | U179: 855 | V179: 931 | W179: 1009 | X179: 1076
C180: 705 | D180: 802 | E180: 731 | F180: 670 | G180: 616 | H180: 838 | I180: 750 | J180: 815 | K180: 520 | L180: 1004 | M180: 1044 | N180: 1176 | O180: 899 | P180: 1096 | Q180: 1098 | R180: 1026 | S180: 829 | T180: 901 | U180: 826 | V180: 933 | W180: 1006 | X180: 1108
C181: 713 | D181: 754 | E181: 770 | F181: 718 | G181: 663 | H181: 830 | I181: 748 | J181: 831 | K181: 541 | L181: 1014 | M181: 1067 | N181: 1154 | O181: 879 | P181: 1120 | Q181: 1130 | R181: 1052 | S181: 809 | T181: 953 | U181: 841 | V181: 917 | W181: 1052 | X181: 1079
C182: 755 | D182: 792 | E182: 751 | F182: 672 | G182: 623 | H182: 849 | I182: 695 | J182: 793 | K182: 522 | L182: 1003 | M182: 1037 | N182: 1127 | O182: 860 | P182: 1083 | Q182: 1095 | R182: 1045 | S182: 829 | T182: 930 | U182: 855 | V182: 934 | W182: 999 | X182: 1067
C183: 703 | D183: 770 | E183: 704 | F183: 722 | G183: 602 | H183: 837 | I183: 705 | J183: 786 | K183: 514 | L183: 991 | M183: 1078 | N183: 1154 | O183: 877 | P183: 1088 | Q183: 1118 | R183: 1030 | S183: 811 | T183: 950 | U183: 821 | V183: 934 | W183: 1000 | X183: 1091
C184: 734 | D184: 759 | E184: 759 | F184: 727 | G184: 606 | H184: 884 | I184: 704 | J184: 818 | K184: 524 | L184: 1001 | M184: 1029 | N184: 1147 | O184: 856 | P184: 1123 | Q184: 1143 | R184: 1019 | S184: 818 | T184: 916 | U184: 814 | V184: 953 | W184: 1055 | X184: 1096
C185: 719 | D185: 783 | E185: 720 | F185: 686 | G185: 631 | H185: 832 | I185: 704 | J185: 826 | K185: 510 | L185: 1015 | M185: 1037 | N185: 1166 | O185: 856 | P185: 1114 | Q185: 1092 | R185: 1033 | S185: 836 | T185: 953 | U185: 848 | V185: 952 | W185: 991 | X185: 1059
C186: 711 | D186: 770 | E186: 736 | F186: 679 | G186: 660 | H186: 891 | I186: 759 | J186: 828 | K186: 553 | L186: 1021 | M186: 1080 | N186: 1109 | O186: 872 | P186: 1110 | Q186: 1141 | R186: 1077 | S186: 851 | T186: 953 | U186: 849 | V186: 943 | W186: 1018 | X186: 1051
C187: 713 | D187: 766 | E187: 736 | F187: 664 | G187: 644 | H187: 872 | I187: 735 | J187: 799 | K187: 536 | L187: 1017 | M187: 1070 | N187: 1120 | O187: 874 | P187: 1066 | Q187: 1097 | R187: 1043 | S187: 858 | T187: 915 | U187: 799 | V187: 911 | W187: 1011 | X187: 1064
C188: 706 | D188: 749 | E188: 717 | F188: 689 | G188: 610 | H188: 864 | I188: 729 | J188: 787 | K188: 513 | L188: 1039 | M188: 1040 | N188: 1157 | O188: 839 | P188: 1077 | Q188: 1137 | R188: 1013 | S188: 823 | T188: 957 | U188: 830 | V188: 946 | W188: 986 | X188: 1066
C189: 717 | D189: 768 | E189: 757 | F189: 681 | G189: 600 | H189: 830 | I189: 710 | J189: 838 | K189: 569 | L189: 1047 | M189: 1057 | N189: 1122 | O189: 897 | P189: 1103 | Q189: 1127 | R189: 1056 | S189: 860 | T189: 951 | U189: 850 | V189: 960 | W189: 1018 | X189: 1096
C190: 702 | D190: 784 | E190: 751 | F190: 672 | G190: 603 | H190: 844 | I190: 755 | J190: 802 | K190: 516 | L190: 977 | M190: 1022 | N190: 1122 | O190: 889 | P190: 1102 | Q190: 1115 | R190: 1048 | S190: 813 | T190: 955 | U190: 810 | V190: 922 | W190: 1019 | X190: 1075
C191: 711 | D191: 786 | E191: 742 | F191: 678 | G191: 641 | H191: 830 | I191: 711 | J191: 782 | K191: 546 | L191: 979 | M191: 1020 | N191: 1162 | O191: 887 | P191: 1103 | Q191: 1106 | R191: 1028 | S191: 862 | T191: 901 | U191: 850 | V191: 930 | W191: 1054 | X191: 1104
C192: 750 | D192: 751 | E192: 755 | F192: 686 | G192: 619 | H192: 833 | I192: 730 | J192: 795 | K192: 566 | L192: 1015 | M192: 1050 | N192: 1171 | O192: 876 | P192: 1096 | Q192: 1115 | R192: 1040 | S192: 809 | T192: 951 | U192: 846 | V192: 902 | W192: 1044 | X192: 1090
C193: 736 | D193: 802 | E193: 745 | F193: 657 | G193: 628 | H193: 848 | I193: 741 | J193: 829 | K193: 559 | L193: 1023 | M193: 1050 | N193: 1137 | O193: 846 | P193: 1096 | Q193: 1140 | R193: 1062 | S193: 805 | T193: 947 | U193: 830 | V193: 956 | W193: 1037 | X193: 1100
C194: 728 | D194: 800 | E194: 710 | F194: 721 | G194: 647 | H194: 827 | I194: 730 | J194: 828 | K194: 568 | L194: 1009 | M194: 1021 | N194: 1119 | O194: 834 | P194: 1083 | Q194: 1153 | R194: 1023 | S194: 843 | T194: 920 | U194: 839 | V194: 923 | W194: 1023 | X194: 1088
C195: 747 | D195: 798 | E195: 707 | F195: 727 | G195: 631 | H195: 848 | I195: 741 | J195: 812 | K195: 539 | L195: 1045 | M195: 1044 | N195: 1112 | O195: 834 | P195: 1132 | Q195: 1095 | R195: 1036 | S195: 843 | T195: 931 | U195: 845 | V195: 918 | W195: 1039 | X195: 1107
C196: 705 | D196: 753 | E196: 709 | F196: 704 | G196: 644 | H196: 831 | I196: 707 | J196: 801 | K196: 571 | L196: 986 | M196: 1077 | N196: 1151 | O196: 900 | P196: 1114 | Q196: 1149 | R196: 1069 | S196: 855 | T196: 920 | U196: 837 | V196: 951 | W196: 988 | X196: 1068
C197: 756 | D197: 795 | E197: 728 | F197: 684 | G197: 656 | H197: 834 | I197: 753 | J197: 790 | K197: 525 | L197: 1002 | M197: 1029 | N197: 1137 | O197: 895 | P197: 1094 | Q197: 1098 | R197: 1041 | S197: 806 | T197: 923 | U197: 808 | V197: 955 | W197: 1019 | X197: 1039
C198: 739 | D198: 782 | E198: 741 | F198: 683 | G198: 643 | H198: 847 | I198: 738 | J198: 813 | K198: 539 | L198: 999 | M198: 1021 | N198: 1170 | O198: 836 | P198: 1103 | Q198: 1129 | R198: 1052 | S198: 804 | T198: 916 | U198: 847 | V198: 905 | W198: 1013 | X198: 1100
C199: 722 | D199: 799 | E199: 746 | F199: 671 | G199: 648 | H199: 862 | I199: 723 | J199: 779 | K199: 511 | L199: 1008 | M199: 1028 | N199: 1157 | O199: 877 | P199: 1088 | Q199: 1123 | R199: 1054 | S199: 850 | T199: 954 | U199: 792 | V199: 945 | W199: 1014 | X199: 1080
C200: 694 | D200: 778 | E200: 734 | F200: 713 | G200: 621 | H200: 866 | I200: 733 | J200: 781 | K200: 566 | L200: 1011 | M200: 1043 | N200: 1147 | O200: 861 | P200: 1116 | Q200: 1145 | R200: 1040 | S200: 853 | T200: 946 | U200: 833 | V200: 924 | W200: 1000 | X200: 1078
... 300 more rows
